bitfinex-derivatives/quotes_SOLF0:USTF0_20251119
["timestamp","ask_amount","ask_price","bid_price","bid_amount"]
[1763587794744,0.05343323,134.83,134.81,6.6835]
[1763587795539,3.33,134.89,134.83,6.6821]
[1763587795744,3.33,134.89,134.79,10.32434693]
[1763587796648,0.05328246,134.85,134.84,6.6818]
[1763587796840,0.05469499,134.86,134.84,6.6818]
[1763587797440,3.33,134.96,134.86,6.6806]
[1763587797742,3.33,134.96,134.82,10.32434693]
[1763587798448,10.32434693,135.01,134.88,0.05498343]
[1763587798449,3.38605684,134.9,134.88,0.05498343]
[1763587798746,3.38095494,134.9,134.88,0.05166092]
[1763587799144,3.33,134.88,134.76,10.32434693]
[1763587799838,3.33,134.88,134.8,6.6837]
[1763587800039,0.05474216,134.85,134.83,0.04967352]
[1763587800345,3.38474216,134.85,134.83,0.04967352]
[1763587800541,0.05474216,134.85,134.83,0.04967352]
[1763587800948,3.33,134.93,134.83,1.52967352]
[1763587801142,3.33,134.93,134.82,10.32434693]
[1763587801143,3.33,135.01,134.85,10.32434693]
[1763587801344,3.33,135.01,134.81,16.32]
[1763587801544,3.33,134.99,134.88,6.6798]
[1763587801846,3.33,134.99,134.84,10.32434693]
[1763587802048,3.33,134.94,134.92,0.05571486]
[1763587802349,0.05189984,134.94,134.92,0.05498401]
[1763587802742,0.05189984,134.94,134.92,6.73288401]
[1763587803036,3.33,135.02,134.92,0.05498401]
[1763587803246,3.33,135.02,134.9,10.32434693]
[1763587803447,3.33,135.02,134.93,10.32434693]
[1763587803843,3.33,135.08,134.93,10.32434693]
[1763587804043,0.05128317,135.02,134.99,0.0551779]
[1763587804243,3.38101887,135.02,134.99,0.05352224]
[1763587804442,0.05101887,135.02,134.99,0.05352224]
[1763587805337,3.33,135.1,135.05,6.6714]
[1763587805747,3.33,135.1,134.97,16.3]
[1763587806350,3.33,135.04,135.02,0.05529826]
[1763587806558,0.05028982,135.04,135.02,0.0567957]
[1763587807051,0.05028982,135.04,135.02,6.7296957]
[1763587807256,3.33,135.11,135.02,0.0567957]
[1763587807550,3.33,135.11,135.04,6.6719]
[1763587807751,3.33,135.11,134.99,10.32434693]
[1763587808151,0.04690716,135.06,135.04,0.05545165]
[1763587808349,3.02,135.05,135.04,0.05545165]
[1763587808547,0.05533936,135.06,135.04,0.05545165]
[1763587808747,3.07533936,135.06,135.04,0.05545165]
[1763587809640,0.05533936,135.06,135.04,0.05545165]
[1763587809852,3.02,135.14,135.04,0.05545165]
[1763587810039,3.02,135.14,135.0,10.32434693]
[1763587810239,93.51,135.24,134.97,16.3]
[1763587810240,3.02,135.12,134.97,26.62434693]
[1763587810647,3.02,135.12,135.02,6.6729]
[1763587810847,3.07201879,135.08,135.06,0.04730662]
[1763587811053,3.07011962,135.08,134.97,16.3]
[1763587811248,3.02,135.08,134.97,16.3]
[1763587811553,3.02,135.08,134.95,16.28]
[1763587811761,3.02,135.08,134.99,6.6743]
[1763587812149,3.02,135.08,135.0,6.6738]
[1763587812449,0.0504194,135.05,135.03,0.0538494]
[1763587812650,3.0704194,135.05,135.03,0.04805867]
[1763587813361,0.0504194,135.05,135.03,0.04805867]
[1763587813855,3.0704194,135.05,135.03,0.04805867]
[1763587815057,3.0704194,135.05,134.93,2.67615]
[1763587815361,3.02,135.05,134.99,6.6744]
[1763587815552,3.02,135.05,134.95,10.32434693]
[1763587816052,0.05249302,135.01,134.99,0.04914709]
[1763587817152,0.05249302,135.01,134.99,6.72334709]
[1763587818158,3.07249302,135.01,134.99,0.04914709]
[1763587818356,0.05249302,135.01,134.99,0.04914709]
[1763587818851,3.07249302,135.01,134.99,0.04914709]
[1763587819856,3.07249302,135.01,134.93,2.67615]
[1763587820156,6.58782985,135.0,134.93,2.67615]
[1763587820351,3.02,134.99,134.93,2.67615]
[1763587820551,3.02,134.96,134.85,16.28]
[1763587820756,3.02,134.91,134.81,1.28891276]
[1763587820953,3.02,134.89,134.81,1.28891276]
[1763587821158,3.02,134.89,134.77,6.58782985]
[1763587821358,3.02,134.87,134.77,1.29087301]
[1763587821553,3.02,134.86,134.74,6.58782985]
[1763587821750,0.04934846,134.81,134.79,0.05523821]
[1763587821953,0.05192307,134.81,134.79,0.05523821]
[1763587822652,3.02,134.9,134.79,0.05523821]
[1763587822956,3.02,134.9,134.79,6.58782985]
[1763587823151,3.02,134.9,134.85,6.6812]
[1763587823553,3.02,134.88,134.86,0.05693715]
[1763587823756,0.05610233,134.89,134.86,6.73763715]
[1763587824261,0.05610233,134.89,134.86,0.05693715]
[1763587825062,3.07610233,134.89,134.86,0.05693715]
[1763587825459,0.05610233,134.89,134.86,0.05693715]
[1763587825856,0.05610233,134.89,134.87,6.6802]
[1763587826050,3.02,134.93,134.86,0.05693715]
[1763587826452,3.22,134.99,134.9,6.6787]
[1763587826666,3.22,134.99,134.88,6.58782985]
[1763587827057,0.05039719,134.95,134.93,6.6772]
[1763587827457,0.05039719,134.95,134.92,0.05435781]
[1763587827761,3.27039719,134.95,134.92,0.05435781]
[1763587829461,3.27039719,134.95,134.81,16.28]
[1763587829462,3.27039719,134.95,134.83,6.58782985]
[1763587829661,3.22,134.95,134.83,6.58782985]
[1763587830461,0.0556331,134.9,134.88,0.05671938]
[1763587830662,0.05131671,134.9,134.88,0.05671938]
[1763587832162,0.05131671,134.9,134.88,6.73651938]
[1763587832564,3.22,134.95,134.88,0.05671938]
[1763587832960,3.22,134.95,134.91,6.6784]
[1763587833155,3.22,134.95,134.86,6.58782985]
[1763587833356,3.22,134.94,134.81,22.86782985]
[1763587833557,0.05188512,134.89,134.86,0.0497716]
[1763587833966,0.05188512,134.89,134.87,6.6803]
[1763587834858,3.27188512,134.89,134.86,0.0497716]
[1763587835056,3.27188512,134.89,134.76,19.95922985]
[1763587835057,3.22,134.88,134.76,19.95922985]
[1763587835673,3.22,134.88,134.76,13.3714]
[1763587835965,0.04729659,134.83,134.81,0.05221692]
[1763587836264,0.04957918,134.83,134.82,6.6828]
[1763587837270,0.04957918,134.83,134.81,0.05221692]
[1763587837665,0.04957918,134.83,134.81,6.73551692]
[1763587839270,3.26957918,134.83,134.81,6.73551692]
[1763587839577,3.26957918,134.83,134.81,0.05221692]
[1763587840368,0.04957918,134.83,134.81,6.73561692]
[1763587844777,3.26957918,134.83,134.81,0.05221692]
[1763587845575,0.04957918,134.83,134.81,0.05221692]
[1763587846080,0.04957918,134.83,134.81,6.73561692]
[1763587848175,3.22,134.9,134.85,6.6813]
[1763587848566,3.22,134.9,134.87,6.6805]
[1763587848974,3.22,134.9,134.82,6.58782985]
[1763587849165,3.26871417,134.87,134.85,0.04820312]
[1763587849370,3.27597,134.87,134.85,0.05318333]
[1763587849872,0.05597,134.87,134.85,0.05318333]
[1763587850374,0.05597,134.87,134.85,6.73468333]
[1763587852181,3.22,134.96,134.89,6.6793]
[1763587852479,3.22,134.96,134.85,6.58782985]
[1763587852675,3.22,134.96,134.8,13.3677]
[1763587852978,3.22,134.96,134.83,6.58782985]
[1763587853282,22.29,134.97,134.83,6.58782985]
[1763587853283,3.27171723,134.91,134.88,0.05656969]
[1763587853473,3.27148424,134.91,134.88,0.05625849]
[1763587853780,3.27148424,134.91,134.88,6.73625849]
[1763587856878,3.27148424,134.91,134.88,0.05625849]
[1763587857383,3.27148424,134.91,134.74,105.30776457]
[1763587857572,3.22,134.91,134.78,6.58782985]
[1763587858378,0.05491865,134.86,134.83,0.04956685]
[1763587858580,0.05491865,134.86,134.85,6.6814]
[1763587859585,0.05491865,134.86,134.83,6.73176685]
[1763587859884,0.05491865,134.86,134.83,0.04956685]
[1763587860084,3.27491865,134.86,134.83,0.04956685]
[1763587860681,0.05491865,134.86,134.83,0.04956685]
[1763587861083,3.27491865,134.86,134.83,0.04956685]
[1763587862877,3.22,134.85,134.73,6.58782985]
[1763587863086,3.22,134.85,134.71,13.3762]
[1763587863590,3.22,134.84,134.71,13.3762]
[1763587864090,3.27692267,134.8,134.78,0.04743338]
[1763587864290,3.27169031,134.8,134.78,0.04743338]
[1763587865587,0.05169031,134.8,134.78,0.04743338]
[1763587865780,0.05169031,134.8,134.78,6.73243338]
[1763587866784,3.22,134.87,134.82,6.6828]
[1763587867287,3.22,134.87,134.82,6.683]
[1763587867685,0.05640586,134.86,134.83,0.05362483]
[1763587867890,3.33,134.85,134.83,0.05362483]
[1763587869592,3.33,134.85,134.75,6.58782985]
[1763587870592,3.33,134.9,134.79,0.05346615]
[1763587870887,3.33,134.9,134.81,6.58782985]
[1763587871787,3.38098857,134.87,134.84,0.04836573]
[1763587871986,3.38039772,134.87,134.84,0.05126023]
[1763587872793,0.05039772,134.87,134.85,6.6814]
[1763587873404,3.33,134.96,134.85,1.48]
[1763587873601,3.33,134.96,134.87,6.58782985]
[1763587873809,3.33,135.0,134.9,6.58782985]
[1763587874007,3.33,135.0,134.93,6.58782985]
[1763587874202,3.33,135.05,134.93,6.58782985]
[1763587874402,0.0469346,135.0,134.98,0.04764925]
[1763587874607,0.00126565,135.0,134.98,0.04764925]
[1763587875007,3.33,135.08,134.99,6.58782985]
[1763587875501,3.33,135.08,134.84,103.944]
[1763587875701,3.33,135.08,134.91,103.8875]
[1763587875901,3.33,135.08,134.98,0.0569025]
[1763587876106,0.05411802,135.04,135.02,0.04723338]
[1763587876308,3.38411802,135.04,135.02,0.04723338]
[1763587876503,3.38411802,135.04,134.94,6.58782985]
[1763587876703,3.33,135.04,134.94,6.58782985]
[1763587876904,3.33,135.08,134.97,6.58782985]
[1763587877105,3.33,135.08,134.99,6.6742]
[1763587877305,3.33,135.08,134.97,6.58782985]
[1763587877506,0.05189434,135.04,135.01,0.05151375]
[1763587878306,3.33,135.12,135.01,1.53151375]
[1763587878511,3.33,135.12,135.0,6.58782985]
[1763587878709,3.33,135.12,135.06,6.6709]
[1763587879102,10.31364771,135.19,135.01,16.24]
[1763587879302,0.04818626,135.11,135.09,0.05055412]
[1763587879510,3.33,135.14,135.01,16.24]
[1763587879714,0.05690032,135.1,135.08,0.0527386]
[1763587880107,3.33,135.18,135.08,0.0527386]
[1763587880312,3.33,135.18,135.09,6.6693]
[1763587880611,3.33,135.18,135.06,10.31364771]
[1763587880810,3.33,135.18,135.11,6.6683]
[1763587881120,0.05511427,135.16,135.13,0.05108903]
[1763587881321,3.33,135.15,135.03,10.31364771]
[1763587881511,3.33,135.15,135.06,6.6708]
[1763587881815,3.33,135.21,135.03,10.31364771]
[1763587882009,3.33,135.21,135.11,6.6685]
[1763587882211,3.33,135.16,135.03,10.31364771]
[1763587882714,3.33,135.16,135.07,6.6705]
[1763587883113,3.33,135.16,135.03,10.31364771]
[1763587883316,0.05677877,135.11,135.08,0.0530287]
[1763587883512,3.33,135.2,135.08,0.0530287]
[1763587883716,3.33,135.2,135.06,10.31364771]
[1763587884621,0.04692808,135.14,135.12,0.05281951]
[1763587884814,3.33,135.2,135.12,0.05281951]
[1763587885014,3.33,135.2,135.14,6.6669]
[1763587885211,3.33,135.2,135.1,16.22]
[1763587885416,3.33,135.2,135.08,6.6701]
[1763587885613,3.33,135.2,135.03,16.22]
[1763587885813,3.01,135.12,135.1,0.05505602]
[1763587886018,3.06516739,135.12,135.1,0.04786385]
[1763587886821,3.06516739,135.12,134.99,10.31364771]
[1763587887017,3.01,135.12,134.99,10.31364771]
[1763587887220,3.01,135.12,135.05,6.6714]
[1763587887815,0.05378681,135.1,135.07,0.04937349]
[1763587888019,3.01,135.21,135.07,0.05557425]
[1763587888214,3.01,135.21,135.07,16.2]
[1763587888419,3.01,135.21,135.11,6.6686]
[1763587888921,3.01,135.21,135.12,6.668]
[1763587889122,3.01,135.17,135.07,16.2]
[1763587889420,3.01,135.17,135.08,6.6701]
[1763587890224,142.1147,135.26,135.11,0.04810056]
[1763587890225,3.01,135.13,135.11,0.04810056]
[1763587890523,3.05780744,135.13,135.11,0.04912799]
[1763587891118,0.04780744,135.13,135.11,0.04912799]
[1763587891622,3.05780744,135.13,135.11,0.04912799]
[1763587892329,3.01,135.12,135.01,10.31364771]
[1763587892520,3.01,135.12,134.98,26.51364771]
[1763587893118,3.01,135.12,134.98,16.2]
[1763587893321,0.04907748,135.06,135.04,0.05045708]
[1763587893521,0.05142895,135.06,135.04,0.05045708]
[1763587894831,3.06142895,135.06,135.04,0.05045708]
[1763587895220,0.05142895,135.06,135.04,0.05045708]
[1763587896123,3.06142895,135.06,135.04,0.05045708]
[1763587896325,3.06142895,135.06,134.91,10.31364771]
[1763587896532,3.01,135.1,134.98,10.31364771]
[1763587896826,3.01,135.16,135.04,10.31364771]
[1763587897431,0.04921945,135.11,135.09,6.71971615]
[1763587897624,0.05378498,135.11,135.09,6.71971615]
[1763587897827,0.05378498,135.11,135.02,16.2]
[1763587897828,3.01,135.1,135.02,6.6729]
[1763587898124,3.01,135.1,134.96,23.66584771]
[1763587898316,3.01,135.1,134.99,10.31364771]
[1763587898521,3.01,135.14,135.06,6.671]
[1763587898922,0.05618105,135.11,135.09,0.04747435]
[1763587901224,0.05618105,135.11,135.09,6.71697435]
[1763587901618,3.06618105,135.11,135.09,0.04747435]
[1763587901820,0.05618105,135.11,135.09,0.04747435]
[1763587903022,0.05618105,135.11,135.09,6.71697435]
[1763587903531,0.05618105,135.11,135.09,0.04747435]
[1763587904738,0.05618105,135.11,135.09,6.71687435]
[1763587905031,0.05618105,135.11,135.09,0.04747435]
[1763587905232,3.06618105,135.11,135.09,0.04747435]
[1763587905422,0.05618105,135.11,135.09,0.04747435]
[1763587905921,0.05618105,135.11,135.09,6.71707435]
[1763587906127,0.05618105,135.11,135.09,0.04747435]
[1763587907936,0.05618105,135.11,135.09,6.71707435]
[1763587908829,3.01,135.19,135.09,11.84112206]
[1763587909133,3.01,135.23,135.12,10.31364771]
[1763587909722,3.01,135.23,135.16,0.04660898]
[1763587910030,0.05550916,135.19,135.16,0.04660898]
[1763587911327,3.06550916,135.19,135.16,0.04660898]
[1763587912637,0.05550916,135.19,135.16,6.71270898]
[1763587913133,0.05550916,135.19,135.17,6.6654]
[1763587914438,3.01,135.23,135.2,6.6641]
[1763587914635,3.01,135.3,135.2,6.6641]
[1763587914831,3.01,135.3,135.15,10.31364771]
[1763587915537,10.31364771,135.32,135.21,0.04806855]
[1763587915538,3.05709114,135.24,135.21,0.04806855]
[1763587915846,0.05320253,135.24,135.21,0.04794337]
[1763587916338,0.05320253,135.24,135.21,6.71164337]
[1763587916637,3.06320253,135.24,135.21,0.04794337]
[1763587917239,0.05320253,135.24,135.21,0.04794337]
[1763587917740,0.05320253,135.24,135.22,6.6632]
[1763587918329,0.05320253,135.24,135.22,6.663]
[1763587919744,0.05320253,135.24,135.21,0.04794337]
[1763587920136,0.05320253,135.24,135.22,6.6631]
[1763587920738,0.05320253,135.24,135.21,0.04794337]
[1763587920739,3.01,135.32,135.21,0.04794337]
[1763587921043,3.01,135.38,135.24,10.31364771]
[1763587921243,3.01,135.38,135.27,10.31364771]
[1763587921643,3.01,135.38,135.24,10.31364771]
[1763587921843,3.01,135.33,135.23,16.16]
[1763587922039,0.05143423,135.32,135.23,16.16]
[1763587922232,0.05143423,135.32,135.17,117.0158]
[1763587922233,3.05957941,135.29,135.07,103.7655]
[1763587922432,3.01,135.29,135.13,10.31364771]
[1763587922641,3.01,135.29,135.16,10.31364771]
[1763587922842,3.01,135.29,135.14,10.31364771]
[1763587923036,3.01,135.29,135.14,26.47364771]
[1763587923341,3.01,135.33,135.2,0.05202117]
[1763587923543,3.01,135.33,135.17,10.31364771]
[1763587923745,3.01,135.33,135.2,10.31364771]
[1763587924443,0.05311183,135.28,135.26,6.6608]
[1763587924747,0.05311183,135.28,135.17,103.6877]
[1763587924748,3.0581602,135.28,135.14,26.47364771]
[1763587924932,3.01,135.28,135.21,6.6636]
[1763587925331,3.01,135.28,135.14,26.47364771]
[1763587925533,3.01,135.34,135.2,10.31364771]
[1763587925738,0.05183078,135.28,135.26,0.04836176]
[1763587925934,0.04828028,135.28,135.26,0.05445057]
[1763587926139,0.04828028,135.28,135.26,6.71545057]
[1763587926543,3.01,135.35,135.26,0.05445057]
[1763587926744,3.01,135.35,135.23,10.31364771]
[1763587927636,3.01,135.35,135.28,6.70814543]
[1763587927637,0.05482142,135.3,135.28,6.70814543]
[1763587927836,0.04730442,135.3,135.28,0.04784543]
[1763587928145,3.2,135.43,135.28,0.04784543]
[1763587928444,3.2,135.41,135.26,10.31364771]
[1763587929146,0.05201105,135.35,135.32,0.05315307]
[1763587929346,0.04932135,135.35,135.33,6.6577]
[1763587929544,0.04932135,135.35,135.32,0.05050584]
[1763587930336,0.04932135,135.35,135.32,6.70860584]
[1763587930540,0.04932135,135.35,135.32,0.05050584]
[1763587930942,3.2,135.42,135.32,0.05050584]
[1763587931141,3.2,135.42,135.29,10.31364771]
[1763587931348,3.2,135.42,135.3,16.14]
[1763587932048,0.05442165,135.37,135.35,0.05005606]
[1763587932255,0.04812907,135.37,135.35,0.05005606]
[1763587932549,0.04812907,135.37,135.36,6.6561]
[1763587932744,0.04812907,135.37,135.35,0.05005606]
[1763587932945,3.2,135.45,135.39,6.6545]
[1763587933751,3.2,135.44,135.3,16.14]
[1763587934055,3.24768412,135.38,135.36,0.05360731]
[1763587934257,3.25577392,135.38,135.36,0.04820146]
[1763587934748,3.2,135.37,135.36,0.04820146]
[1763587934948,3.2,135.37,135.2,187.9917]
[1763587935155,3.2,135.37,135.22,103.6519]
[1763587935448,3.2,135.37,135.22,116.9785]
[1763587935850,0.05324656,135.31,135.3,6.6591]
[1763587936055,0.05499065,135.32,135.29,0.0487973]
[1763587936248,0.05531056,135.32,135.31,6.6586]
[1763587937449,3.2,135.41,135.29,16.16973769]
[1763587937651,3.2,135.41,135.29,16.12]
[1763587938150,3.2,135.38,135.22,10.31364771]
[1763587938342,3.2,135.38,135.29,0.04790567]
[1763587938652,3.2,135.31,135.22,16.12]
[1763587938856,3.25115412,135.28,135.25,0.0542608]
[1763587939046,3.25000201,135.28,135.25,0.05417285]
[1763587939652,0.05000201,135.28,135.25,0.05417285]
[1763587939951,0.05000201,135.28,135.25,6.71567285]
[1763587940249,0.05000201,135.28,135.25,0.05417285]
[1763587940448,3.2,135.37,135.25,1.53417285]
[1763587940652,3.2,135.37,135.23,10.31364771]
[1763587940853,3.2,135.37,135.26,6.55849926]
[1763587941346,0.04724556,135.33,135.3,0.05165014]
[1763587942149,3.2,135.37,135.3,0.05165014]
[1763587942150,3.2,135.41,135.32,6.55849926]
[1763587942357,3.2,135.45,135.32,6.55849926]
[1763587943156,0.04975889,135.4,135.37,0.0524574]
[1763587943356,3.2,135.45,135.41,6.6538]
[1763587943856,3.2,135.49,135.37,6.55849926]
[1763587944053,3.2,135.49,135.38,16.12]
[1763587944256,3.2,135.49,135.42,0.05673837]
[1763587944658,3.2,135.49,135.42,6.70993837]
[1763587945258,3.2,135.49,135.42,0.05673837]
[1763587945650,3.2,135.49,135.45,6.6516]
[1763587945852,3.2,135.49,135.46,0.04759037]
[1763587947156,3.0,135.53,135.46,0.04759037]
[1763587949254,3.0,135.57,135.46,0.04759037]
[1763587949450,3.0,135.57,135.5,0.05606897]
[1763587950157,3.0,135.57,135.52,6.6482]
[1763587950461,3.0,135.57,135.53,0.0507705]
[1763587950666,3.0,135.57,135.54,0.05514442]
[1763587950959,3.0,135.57,135.54,0.04755173]
[1763587951362,3.0,135.57,135.46,6.55849926]
[1763587951567,3.0,135.57,135.46,16.1]
[1763587952060,3.0,135.57,135.46,22.65849926]
[1763587952260,3.0,135.57,135.49,6.55849926]
[1763587952465,0.0521618,135.54,135.52,6.69820609]
[1763587952667,0.05014511,135.54,135.52,0.05208493]
[1763587954066,3.0,135.65,135.52,8.09058419]
[1763587954272,3.0,135.65,135.52,6.55849926]
[1763587954567,3.0,135.65,135.55,6.647]
[1763587955162,3.0,135.65,135.59,0.0517422]
[1763587957070,3.0,135.63,135.59,0.0517422]
[1763587957471,3.0,135.61,135.49,6.55849926]
[1763587957675,3.0,135.61,135.5,16.1]
[1763587957969,3.0,135.61,135.52,6.55849926]
[1763587958469,0.04960351,135.58,135.56,6.6466]
[1763587958678,0.05307558,135.58,135.56,0.05233675]
[1763587959872,0.05307558,135.58,135.56,6.69873675]
[1763587961377,3.28,135.69,135.56,1.53233675]
[1763587961581,3.28,135.69,135.58,6.55849926]
[1763587961780,3.28,135.69,135.63,6.6428]
[1763587962181,3.28,135.69,135.58,6.55849926]
[1763587962384,3.28,135.69,135.62,0.05639296]
[1763587962576,3.28,135.69,135.63,6.6428]
[1763587962978,3.28,135.69,135.62,0.05639296]
[1763587963173,3.28,135.69,135.62,6.69979296]
[1763587963378,3.28,135.69,135.62,0.05639296]
[1763587964286,3.28,135.69,135.63,6.643]
[1763587964486,3.28,135.69,135.62,0.05639296]
[1763587964882,3.28,135.69,135.62,6.69989296]
[1763587965485,3.28,135.69,135.63,6.643]
[1763587965682,3.28,135.72,135.62,0.05639296]
[1763587965887,3.28,135.72,135.66,0.05637766]
[1763587966088,3.28,135.72,135.66,6.69767766]
[1763587967390,3.28,135.71,135.66,6.69767766]
[1763587967589,3.28,135.71,135.67,0.04848568]
[1763587968185,1.28309122,135.79,135.67,0.04848568]
[1763587968498,28.9252,135.8,135.62,19.84529926]
[1763587968499,3.28,135.76,135.62,19.84529926]
[1763587968795,3.28,135.69,135.65,6.6421]
[1763587968990,3.28,135.69,135.57,6.55849926]
[1763587969294,3.32777372,135.64,135.62,0.05225726]
[1763587969488,3.33518047,135.64,135.62,0.0496794]
[1763587970287,0.05518047,135.64,135.62,0.0496794]
[1763587970480,0.05518047,135.64,135.49,103.4412]
[1763587970481,3.33518047,135.64,135.58,6.6455]
[1763587970686,3.33518047,135.64,135.52,6.55849926]
[1763587970993,3.28,135.68,135.55,6.55849926]
[1763587971589,0.04854302,135.63,135.6,0.0489445]
[1763587972189,0.04854302,135.63,135.61,6.6439]
[1763587972793,0.04854302,135.63,135.6,0.0489445]
[1763587973697,0.04854302,135.63,135.61,6.6439]
[1763587973996,3.32854302,135.63,135.6,0.0489445]
[1763587974395,3.32854302,135.63,135.51,16.06]
[1763587974599,3.28,135.63,135.55,6.6469]
[1763587974798,3.28,135.63,135.51,16.06]
[1763587975089,3.28,135.61,135.53,6.6479]
[1763587975290,3.28,135.61,135.51,16.06]
[1763587975492,0.05122749,135.57,135.55,0.0491337]
[1763587975691,0.05122749,135.57,135.55,6.6959337]
[1763587975893,3.33122749,135.57,135.55,0.0491337]
[1763587976602,0.05122749,135.57,135.55,0.0491337]
[1763587976805,0.05122749,135.57,135.55,6.6960337]
[1763587977200,3.33122749,135.57,135.55,0.0491337]
[1763587978598,0.05122749,135.57,135.55,0.0491337]
[1763587978801,0.05122749,135.57,135.55,6.6959337]
[1763587979299,3.28,135.67,135.55,0.0491337]
[1763587979505,3.28,135.67,135.53,6.55849926]
[1763587979704,3.28,135.67,135.56,6.55849926]
[1763587979897,3.28,135.67,135.63,6.643]
[1763587980401,3.33203281,135.66,135.64,0.05387562]
[1763587980591,3.33309442,135.66,135.64,0.04651701]
[1763587981097,3.33309442,135.66,135.56,6.55849926]
[1763587981404,3.28,135.66,135.56,6.55849926]
[1763587981805,3.28,135.71,135.59,6.55849926]
[1763587982198,0.04939737,135.66,135.64,0.04661057]
[1763587982402,0.04812493,135.66,135.64,0.04661057]
[1763587982799,0.04812493,135.66,135.64,6.68891057]
[1763587983706,3.28,135.71,135.67,6.6412]
[1763587983905,3.28,135.75,135.67,6.6412]
[1763587984303,3.28,135.75,135.62,6.55849926]
[1763587984503,3.28,135.75,135.65,6.55849926]
[1763587984714,3.28,135.71,135.58,6.55849926]
[1763587985006,3.28,135.68,135.55,6.55849926]
[1763587985308,3.28,135.65,135.55,6.6468]
[1763587985504,3.28,135.65,135.52,22.61849926]
[1763587985902,0.05589092,135.6,135.52,22.61849926]
[1763587986198,3.33589092,135.6,135.57,0.0517259]
[1763587986708,0.05589092,135.6,135.57,0.0517259]
[1763587987396,0.05589092,135.6,135.57,6.6976259]
[1763587987600,0.05589092,135.6,135.57,0.0517259]
[1763587987908,3.33589092,135.6,135.57,0.0517259]
[1763587988110,0.05589092,135.6,135.57,0.0517259]
[1763587990815,3.28,135.68,135.57,0.0517259]
[1763587991002,3.28,135.68,135.55,6.55849926]
[1763587991003,3.28,135.68,135.58,6.55849926]
[1763587991605,3.28,135.67,135.56,16.06]
[1763587991911,3.28,135.62,135.6,0.05348089]
[1763587992402,3.28,135.62,135.53,6.55849926]
[1763587993310,0.04957695,135.59,135.56,0.05120686]
[1763587994014,0.04957695,135.59,135.57,6.6461]
[1763587994615,3.32957695,135.59,135.56,0.05120686]
[1763587995612,3.28,135.58,135.44,6.55849926]
[1763587995910,3.28,135.58,135.52,6.6483]
[1763587996102,3.28,135.58,135.44,22.61849926]
[1763587996713,0.052552,135.52,135.5,0.0527683]
[1763587996915,0.0509492,135.52,135.5,0.0527683]
[1763587997514,0.0509492,135.52,135.5,6.7021683]
[1763587997920,3.28,135.62,135.5,8.09126756]
[1763587998216,6.55849926,135.68,135.53,6.55849926]
[1763587998406,3.28,135.67,135.53,22.59849926]
[1763587998611,3.28,135.67,135.56,6.55849926]
[1763587998910,0.05161345,135.63,135.6,0.05484074]
[1763588000814,3.33161345,135.63,135.6,0.05484074]
[1763588001210,0.05161345,135.63,135.6,0.05484074]
[1763588001406,0.05161345,135.63,135.61,6.6439]
[1763588002521,0.05161345,135.63,135.6,0.05484074]
[1763588003419,3.33161345,135.63,135.6,0.05484074]
[1763588005815,0.05161345,135.63,135.6,0.05484074]
[1763588006016,3.33161345,135.63,135.6,0.05484074]
[1763588006320,3.33161345,135.63,135.6,6.69924074]
[1763588006718,0.05161345,135.63,135.6,0.05484074]
[1763588007020,0.05161345,135.63,135.61,6.6439]
[1763588007520,0.05161345,135.63,135.6,0.05484074]
[1763588008221,0.05161345,135.63,135.61,6.6441]
[1763588008617,3.16,135.7,135.6,0.05484074]
[1763588008822,3.16,135.7,135.59,10.2325255]
[1763588009022,3.16,135.7,135.59,23.5225255]
[1763588009525,3.16,135.77,135.62,10.2325255]
[1763588009722,3.20840095,135.71,135.68,6.69305705]
[1763588009921,0.05061876,135.71,135.68,0.05205577]
[1763588010221,103.1455,135.89,135.68,0.05205577]
[1763588010222,3.16,135.79,135.68,10.28458127]
[1763588010422,3.16,135.79,135.68,10.2325255]
[1763588010723,3.16,135.84,135.71,10.2325255]
[1763588010925,3.16,135.84,135.74,10.2325255]
[1763588011125,10.2325255,135.91,135.74,10.2325255]